[Event "II Llinars Open 2022"]
[Site "Llinars del Valles"]
[Date "2022.06.28"]
[Round "4.1"]
[White "Narciso Dublan, Marc"]
[Black "Valenzuela Gomez, Fernando"]
[Result "1/2-1/2"]
[ECO "B21"]
[WhiteElo "2464"]
[BlackElo "2373"]
[Annotator "TA"]
[PlyCount "48"]
[EventDate "2022.06.24"]
[EventType "swiss"]
[EventCountry "ESP"]
[SourceTitle "playchess.com"]
[Source "ChessBase"]
[SourceQuality "1"]
[TimeControl "5400+30"]

{[%evp 17,48,0,-8,-7,-2,-16,-25,-34,-25,-12,0,0,0,0,0,0,0,0,0,0,0,0,0,-7,0,0,0,0,0,0,0,0,-12]} 1. e4 {[%emt 0:00:05]} c5 {[%emt 0:14:12]} 2. f4 {[%emt 0:00:28]} d5 {[%emt 0:01:15]} 3. exd5 {[%emt 0:00:09]} Nf6 {[%emt 0:01:25]} 4. Bb5+ {[%emt 0:00:09]} Bd7 {[%emt 0:00:40]} 5. Bxd7+ {[%emt 0:00:13]} Qxd7 {[%emt 0:02:27]} 6. c4 {[%emt 0:00:07]} e6 {[%emt 0:01:16]} 7. Qe2 {[%emt 0:00:08]} Bd6 {[%emt 0:07:15]} 8. d3 {[%emt 0:00:31]} O-O {[%emt 0:01:06]} 9. dxe6 {[%emt 0:00:06]} fxe6 {[%emt 0:02:46]} 10. Nf3 {[%emt 0:00:07] B21: Sicilian: 2 f4 and Morra Gambit.} Nc6 {[%emt 0:00:47] Threatening ...Rae8.} 11. O-O $1 {[%emt 0:00:21]} Rae8 {[%emt 0:06:06]} 12. Nc3 {[%emt 0:00:15] Black has an edge.} e5 $1 {[%emt 0:00:47]} 13. f5 $1 {[%emt 0:00:08]} Qxf5 {[%emt 0:07:19] The position is equal.} 14. Ng5 {[%emt 0:00:44] Prevents e4.} Qd7 {[%emt 0:03:57]} 15. Nge4 {[%emt 0:03:03]} Nd4 {[%emt 0:01:06]} 16. Qd1 {[%emt 0:00:14]} Nxe4 {[%emt 0:00:48] [#]} 17. Nxe4 $146 {[%emt 0:06:43]} ({Predecessor:} 17. Rxf8+ Bxf8 18. Nxe4 Rd8 19. Be3 Nf5 20. Qg4 Be7 21. Bxc5 Qxd3 22. Bxa7 Nd4 23. Bxd4 Qxd4+ {1-0 (31) Purygin,A (2285)-Prikhodko,A (2074) Samara 2010}) 17... Rxf1+ {[%emt 0:01:58]} 18. Kxf1 {[%emt 0:02:59]} Be7 {[%emt 0:03:47]} 19. Be3 {[%emt 0:01:21]} Rd8 {[%emt 0:06:05]} 20. Qd2 {[%emt 0:03:19]} Ne6 {[%emt 0:06:25]} 21. Rd1 {[%emt 0:02:29]} Nf4 {[%emt 0:01:58]} 22. Bxf4 {[%emt 0:04:49]} exf4 {[%emt 0:00:56]} 23. Qe2 {[%emt 0:02:55]} b6 {[%emt 0:03:38]} 24. b3 {[%emt 0:04:31]} Rf8 {[%emt 0:01:02] An interesting draw.  Weighted Error Value: White=0.01 (flawless) /Black=0.02 (flawless)} 1/2-1/2

[Event "II Llinars Open 2022"]
[Site "Llinars del Valles"]
[Date "2022.06.28"]
[Round "4.2"]
[White "Luna Cortes, Luis"]
[Black "Garcia Ramos, Daniel"]
[Result "0-1"]
[ECO "B10"]
[WhiteElo "2215"]
[BlackElo "2441"]
[Annotator "TA"]
[PlyCount "73"]
[EventDate "2022.06.24"]
[EventType "swiss"]
[EventCountry "ESP"]
[SourceTitle "playchess.com"]
[Source "ChessBase"]
[SourceQuality "1"]
[TimeControl "5400+30"]

{[%evp 9,73,0,0,-15,-8,-20,-26,-32,21,0,0,-61,-58,-50,-55,-139,-135,-133,-84,-256,-194,-203,-118,-137,-111,-106,-43,-120,-105,-168,-195,-186,-176,-362,-372,-381,-389,-426,-414,-409,-402,-383,-387,-391,-383,-746,-742,-818,-784,-944,-935,-1009,-980,-1163,-814,-1918,-1833,-1857,-1857,-29987,-29981,-29996,-29997,-29997,-29998,-29998]} 1. e4 {[%emt 0:18:17]} c6 {[%emt 0:00:07]} 2. d3 {[%emt 0:03:48]} d5 {[%emt 0:00:21]} 3. Nd2 {[%emt 0:00:05]} g6 {[%emt 0:06:13]} 4. Be2 {[%emt 0:01:47]} Bg7 {[%emt 0:00:31]} 5. Ngf3 {[%emt 0:05:02]} e5 {[%emt 0:01:29]} 6. b3 {[%emt 0:03:58] B10: Caro-Kann: 2 d3 and 2 c4.} Ne7 {[%emt 0:01:08]} 7. Bb2 {[%emt 0:00:16] [#]} Qc7 $146 {[%emt 0:01:29]} ({Predecessor:} 7... Nd7 8. O-O O-O 9. Re1 Re8 10. Bf1 Qc7 11. a4 a5 12. Ra2 b6 13. Ba3 Ba6 {1-0 (70) Kostic,V (2326)-Haselhorst,H (2093) Schwaebisch Gmuend 2018}) 8. d4 {[%emt 0:08:16] Black has an edge.} exd4 {[%emt 0:02:35]} (8... dxe4 $15 9. Nxe5 f6) 9. Nxd4 {[%emt 0:06:41][%cal Od4b5] Threatens to win with Nb5!} O-O {[%emt 0:01:01]} 10. O-O {[%emt 0:04:44]} (10. Qc1 $1 $11) 10... Rd8 $1 $15 {[%emt 0:01:33]} 11. exd5 {[%emt 0:05:48]} Nxd5 {[%emt 0:04:41]} 12. N2f3 {[%emt 0:09:47]} (12. Rb1 $15) 12... Nf4 $17 {[%emt 0:16:35] ...c5 is the strong threat.} 13. b4 {[%emt 0:04:36]} b6 {[%emt 0:04:22] Black is more active.} (13... Na6 $142 14. c3 c5 15. bxc5 Nxc5) 14. Bd3 $2 {[%emt 0:04:37]} (14. Re1 $17 {was necessary.}) 14... Bg4 {[%emt 0:03:18]} 15. Qb1 {[%emt 0:05:21]} Nxd3 {[%emt 0:04:58]} ({Better is} 15... c5 $1 $19 {[%cal Rc5d4]} 16. bxc5 bxc5) 16. cxd3 {[%emt 0:00:03]} Qd6 {[%emt 0:05:35]} 17. a3 {[%emt 0:02:46]} Na6 {[%emt 0:00:51]} (17... c5 $17 18. h3 Bxh3 19. bxc5 bxc5) 18. Rc1 {[%emt 0:03:37]} (18. h3 $15 Bxf3 19. Nxf3) 18... c5 $36 {[%emt 0:06:08][%mdl 2048] White is under strong pressure.} (18... Bxd4 19. Nxd4 c5 20. Nc2 $15) 19. Nb5 {[%emt 0:01:09] [#]} (19. h3 $17) 19... Qd7 $1 $19 {[%emt 0:00:54]} (19... Qxd3 20. Qxd3 Rxd3 21. Bxg7 Bxf3 22. Be5 $17) 20. Bxg7 {[%emt 0:00:42][%cal Og7h6] Hoping for Bh6!} Bxf3 {[%emt 0:00:24]} (20... Kxg7 21. Ne5 Qxb5 22. Nxg4 $17) ({Stronger than} 20... Qxb5 21. Qb2 Bxf3 22. Bh8 $11) 21. Be5 $2 {[%emt 0:01:17] [#]} (21. gxf3 Kxg7 22. Qb2+ Kg8 23. Nc3) 21... Bxg2 $1 {[%emt 0:04:44]} ({Not} 21... Qxb5 22. gxf3 Rxd3 23. Rd1 $17) 22. Kxg2 {[%emt 0:03:24] aiming for Nc3.} Qd5+ {[%emt 0:00:07]} ({Wrong is} 22... Qxb5 $2 23. bxc5 Qc6+ 24. f3 Nxc5 25. d4 $19) 23. Kg1 {[%emt 0:00:28]} Qxe5 {[%emt 0:00:05]} 24. Nc3 {[%emt 0:00:12]} Qg5+ {[%emt 0:06:16]} 25. Kf1 {[%emt 0:00:59]} Qh4 {[%emt 0:01:35]} 26. Ne4 {[%emt 0:02:41]} Rd4 {[%emt 0:01:44]} 27. bxc5 $2 {[%emt 0:01:55]} (27. Kg1) 27... Nxc5 {[%emt 0:00:18]} 28. Rxc5 {[%emt 0:00:06]} bxc5 {[%emt 0:00:26]} 29. Qb7 {[%emt 0:00:02]} Rad8 {[%emt 0:02:08]} 30. Nxc5 {[%emt 0:01:36]} Qxh2 {[%emt 0:00:29] White must now prevent ...Rg4.} 31. Rb1 {[%emt 0:01:14]} Qh3+ {[%emt 0:01:54]} 32. Ke1 {[%emt 0:00:11]} R4d5 {[%emt 0:01:38]} 33. Ne4 {[%emt 0:01:00]} Rxd3 {[%emt 0:00:19] ( -> ...Qh1+)} 34. Nf6+ {[%emt 0:00:08]} Kg7 {[%emt 0:00:07] Black mates.} 35. Qb2 {[%emt 0:00:08]} Qh1+ {[%emt 0:00:08]} 36. Ke2 {[%emt 0:00:08]} Qf3+ {[%emt 0:00:05]} 37. Ke1 {[%emt 0:00:11] Weighted Error Value: White=0.92/Black=0.21 (precise)} 0-1

[Event "II Llinars Open 2022"]
[Site "Llinars del Valles"]
[Date "2022.06.28"]
[Round "4.3"]
[White "Ayats Llobera, Gerard"]
[Black "Herman Gamazo, Isaac"]
[Result "1-0"]
[ECO "A49"]
[WhiteElo "2423"]
[BlackElo "1823"]
[Annotator "TA"]
[PlyCount "101"]
[EventDate "2022.06.24"]
[EventType "swiss"]
[EventCountry "ESP"]
[SourceTitle "playchess.com"]
[Source "ChessBase"]
[SourceQuality "1"]
[TimeControl "5400+30"]

{[%evp 12,101,26,27,35,35,57,43,93,99,124,109,152,158,134,147,145,156,145,103,80,94,97,110,101,60,72,70,73,53,68,0,99,68,64,64,70,58,72,73,142,145,139,137,158,147,191,195,197,171,222,212,232,222,250,252,277,238,245,240,265,291,296,283,475,475,468,448,823,582,568,577,562,530,607,600,1137,906,1074,1033,1167,1129,29966,6019,29991,29992,29993,29994,29994,29995,29998,29999]} 1. Nf3 {[%emt 0:01:13]} d6 {[%emt 0:01:52]} 2. d4 {[%emt 0:00:31]} Nf6 {[%emt 0:00:08]} 3. g3 {[%emt 0:00:10]} g6 {[%emt 0:00:21]} 4. Bg2 {[%emt 0:00:01]} Bg7 {[%emt 0:00:27]} 5. O-O {[%emt 0:00:02]} O-O {[%emt 0:00:50]} 6. b3 {[%emt 0:01:27]} Nbd7 {[%emt 0:02:04]} 7. Bb2 {[%emt 0:00:13]} Rb8 {[%emt 0:04:29] 7...a5 is a critical line. A49: 1 d4 Nf6 2 Nf3 g6 3 g3: Anti-King's Indian systems.} 8. c4 {[%emt 0:01:02][%cal Bc2c4,Bc4b5][%mdl 32]} b5 {[%emt 0:00:18]} 9. cxb5 $1 {[%emt 0:04:53] [#]} Bb7 $146 {[%emt 0:00:46]} ({Better is} 9... Rxb5 $14 10. e4 Ba6) ({Predecessor:} 9... Rxb5 10. Nc3 Rb8 11. Qd3 c5 12. Na4 Nb6 13. Nxb6 axb6 14. Nd2 Bb7 15. Bxb7 Rxb7 {0-1 (44) Czibulka,Z (2058)-Erdei,L (1894) Level 2014}) 10. Nc3 {[%emt 0:01:06]} Ne4 {[%emt 0:03:03]} 11. Qd3 {[%emt 0:00:44]} f5 {[%emt 0:01:36]} 12. Qc4+ {[%emt 0:05:20]} Kh8 {[%emt 0:00:51]} 13. Nxe4 {[%emt 0:01:01]} Nb6 {[%emt 0:00:19] [#]} 14. Qc1 {[%emt 0:01:06]} Bxe4 {[%emt 0:00:51]} 15. Ng5 {[%emt 0:17:33]} Bxg2 {[%emt 0:00:19]} 16. Kxg2 {[%emt 0:00:18][%cal Od4d5] Black must now prevent d5!} Qc8 {[%emt 0:03:26][%cal Of5f4]} 17. Qc6 {[%emt 0:02:47]} h6 {[%emt 0:04:31]} 18. Nh3 {[%emt 0:02:13] White is much more active.} g5 {[%emt 0:00:35][%cal Bg6g5,Bg5g4][%mdl 32] Against Nf4} 19. f4 {[%emt 0:08:15]} g4 {[%emt 0:00:14]} 20. Nf2 {[%emt 0:01:04]} Qb7 {[%emt 0:00:31]} 21. e4 {[%emt 0:04:28]} (21. Rae1 $14) 21... fxe4 {[%emt 0:01:05]} (21... Qxc6 $11 22. bxc6 Nc4) 22. Qxb7 {[%emt 0:04:35]} (22. Nxg4 $6 Qxc6 23. bxc6 Na4 $11) (22. Qxe4 Qxe4+ 23. Nxe4 Nd5 $14) 22... Rxb7 {[%emt 0:00:43]} 23. Nxg4 {[%emt 0:00:04]} Nd5 {[%emt 0:00:30]} 24. Rfe1 $36 {[%emt 0:02:30][%cal Bf1e1,Be1e2,Be2c2][%mdl 2080] White has good play.} h5 {[%emt 0:00:30] [#]} 25. Nf2 {[%emt 0:00:52][%cal Bg4f2,Bf2d1,Bd1e3][%mdl 32] Black is on the road to losing.} ({Much worse is} 25. Ne3 $6 Nb4 $11) 25... e3 {[%emt 0:00:13]} (25... Rxb5 $142 26. Re2 (26. Rxe4 a5 $16) (26. Nxe4 c5 $14) 26... Rg8) 26. Nd1 $16 {[%emt 0:00:17]} Nb4 {[%emt 0:01:00] [#]} 27. Re2 {[%emt 0:00:20] Against Nc2} (27. Nxe3 Nd3 $11) 27... Rxb5 {[%emt 0:00:11]} 28. Nxe3 {[%emt 0:00:44]} Nd3 {[%emt 0:00:37]} 29. Bc3 {[%emt 0:01:13]} c5 {[%emt 0:06:41]} 30. Rd1 {[%emt 0:00:47]} Nb4 {[%emt 0:01:13]} (30... cxd4 $142 31. Bxd4 Bxd4) 31. Bxb4 $18 {[%emt 0:00:29]} cxb4 {[%emt 0:00:53]} 32. Rc2 {[%emt 0:03:40]} Bf6 {[%emt 0:00:45]} 33. Rc7 {[%emt 0:01:32]} Ra8 {[%emt 0:00:40]} 34. d5 {[%emt 0:01:19]} Kg8 {[%emt 0:01:02]} 35. h3 {[%emt 0:02:06][%cal Bh2h3,Bh3g4,Bg4g5][%mdl 32]} a5 {[%emt 0:00:40]} 36. g4 {[%emt 0:01:44]} hxg4 {[%emt 0:00:08]} 37. hxg4 {[%emt 0:00:08] Threatens to win with g5.} Kf8 $2 {[%emt 0:00:15]} (37... Rc5 {was necessary.}) 38. g5 {[%emt 0:00:32]} Bc3 {[%emt 0:00:18]} 39. a4 {[%emt 0:01:35]} Rbb8 {[%emt 0:01:25]} (39... bxa3 $142 40. Rxc3 Rab8) 40. Kf3 {[%emt 0:04:16] Hoping for Nf5.} Rc8 {[%emt 0:00:08]} 41. Rxc8+ {[%emt 0:00:25]} Rxc8 {[%emt 0:00:01][%mdl 4096] Endgame KRB-KRN} 42. Ke4 {[%emt 0:00:29]} Kf7 {[%emt 0:01:08]} 43. Rh1 {[%emt 0:00:34] Strongly threatening Rh7+.} Kg6 {[%emt 0:01:14] Inhibits Rh7.} 44. Rh6+ {[%emt 0:00:17]} Kf7 {[%emt 0:00:13]} 45. Rh7+ {[%emt 0:00:10]} Kf8 {[%emt 0:01:20]} 46. Kf5 {[%emt 0:00:48] aiming for Ke6.} Rc5 {[%emt 0:04:14]} 47. Ke6 {[%emt 0:00:36] Nf5 would kill now.} Bd2 {[%emt 0:00:23]} 48. Nf5 {[%emt 0:00:22][%cal Rh7h8] White mates.} Kg8 {[%emt 0:00:06]} 49. g6 {[%emt 0:00:21]} Bc3 {[%emt 0:01:07]} 50. Rf7 {[%emt 0:00:15]} Bf6 {[%emt 0:00:28]} 51. Nh6+ {[%emt 0:00:04] Weighted Error Value: White=0.12 (very precise) /Black=0.58} 1-0

[Event "II Llinars Open 2022"]
[Site "Llinars del Valles"]
[Date "2022.06.28"]
[Round "4.4"]
[White "Parra Ordorica, Arnau"]
[Black "Prats Safont, Sergi"]
[Result "1-0"]
[ECO "E01"]
[WhiteElo "2001"]
[BlackElo "2206"]
[Annotator "RC"]
[PlyCount "129"]
[EventDate "2022.06.24"]
[EventType "swiss"]
[EventCountry "ESP"]
[SourceTitle "playchess.com"]
[Source "ChessBase"]
[SourceQuality "1"]
[TimeControl "5400+30"]

1. d4 {[%emt 0:00:02]} d5 {[%emt 0:00:26]} 2. c4 {[%emt 0:00:29]} e6 {[%emt 0:00:18]} 3. Nf3 {[%emt 0:00:21]} c6 {[%emt 0:00:50]} 4. g3 {[%emt 0:01:28]} Nf6 {[%emt 0:03:52]} 5. Bg2 {[%emt 0:00:13]} Bd6 {[%emt 0:02:51]} 6. O-O {[%emt 0:02:12]} O-O {[%emt 0:00:10]} 7. Nbd2 {[%emt 0:03:06]} Nbd7 {[%emt 0:02:08]} 8. Qc2 {[%emt 0:01:26]} Re8 {[%emt 0:05:21]} 9. Rd1 {[%emt 0:00:58]} Qe7 {[%emt 0:03:39]} 10. e4 {[%emt 0:02:18]} dxe4 {[%emt 0:02:04]} 11. Nxe4 {[%emt 0:00:08]} Nxe4 {[%emt 0:02:00]} 12. Qxe4 {[%emt 0:00:10]} Nf6 {[%emt 0:03:29]} 13. Qc2 {[%emt 0:01:15]} c5 {[%emt 0:06:06]} 14. b3 {[%emt 0:14:22]} b6 {[%emt 0:08:48]} 15. dxc5 {[%emt 0:03:45]} Bxc5 {[%emt 0:03:25]} 16. Ng5 {[%emt 0:03:40]} Bb7 {[%emt 0:01:14]} 17. Bb2 {[%emt 0:03:33]} Bxg2 {[%emt 0:02:57]} 18. Kxg2 {[%emt 0:00:27]} e5 {[%emt 0:06:52]} 19. Re1 {[%emt 0:08:43]} Qb7+ {[%emt 0:04:35]} 20. f3 {[%emt 0:00:45]} Bd4 {[%emt 0:06:40]} 21. Bxd4 {[%emt 0:06:55]} exd4 {[%emt 0:00:07]} 22. Ne4 {[%emt 0:00:12]} Nxe4 {[%emt 0:04:28]} 23. Rxe4 {[%emt 0:00:09]} Rad8 {[%emt 0:01:32]} 24. Rd1 {[%emt 0:00:54]} Rxe4 {[%emt 0:01:22]} 25. Qxe4 {[%emt 0:00:07]} Qd7 {[%emt 0:02:07]} 26. Rd3 {[%emt 0:00:59]} h6 {[%emt 0:00:49]} 27. h4 {[%emt 0:06:24]} Qd6 {[%emt 0:01:09]} 28. Kh3 {[%emt 0:06:47]} h5 {[%emt 0:01:03]} 29. g4 {[%emt 0:05:08]} hxg4+ {[%emt 0:01:12]} 30. fxg4 {[%emt 0:03:04]} f6 {[%emt 0:05:35]} 31. Qd5+ {[%emt 0:04:47]} Qxd5 {[%emt 0:00:30]} 32. cxd5 {[%emt 0:00:02]} Rxd5 {[%emt 0:00:07]} 33. Kg3 {[%emt 0:00:09]} Kf7 {[%emt 0:03:30]} 34. Kf4 {[%emt 0:00:20]} Ke6 {[%emt 0:00:34]} 35. Ke4 {[%emt 0:00:12]} Ra5 {[%emt 0:15:09]} 36. a4 {[%emt 0:01:08]} Re5+ {[%emt 0:00:38]} 37. Kxd4 {[%emt 0:00:16]} Rd5+ {[%emt 0:00:04]} 38. Ke4 {[%emt 0:00:19]} Re5+ {[%emt 0:01:14]} 39. Kf4 {[%emt 0:01:42]} g5+ {[%emt 0:00:07]} 40. Kg3 {[%emt 0:01:10]} gxh4+ {[%emt 0:00:07]} 41. Kxh4 {[%emt 0:00:16]} Re4 {[%emt 0:00:29]} 42. Kg3 {[%emt 0:00:27]} Rb4 {[%emt 0:00:12]} 43. Kf3 {[%emt 0:00:58]} a5 {[%emt 0:00:24]} 44. Re3+ {[%emt 0:01:26]} Kd5 {[%emt 0:00:10]} 45. Rd3+ {[%emt 0:00:26]} Ke5 {[%emt 0:00:22]} 46. Re3+ {[%emt 0:04:48]} Kd5 {[%emt 0:00:16]} 47. Rd3+ {[%emt 0:00:43]} Kc5 {[%emt 0:00:06]} 48. Re3 {[%emt 0:01:51]} Rd4 {[%emt 0:02:13]} 49. Rc3+ {[%emt 0:01:52]} Kd5 {[%emt 0:00:30]} 50. Re3 {[%emt 0:01:14]} Rd1 {[%emt 0:00:20]} 51. Kf4 {[%emt 0:00:28]} Rf1+ {[%emt 0:00:50]} 52. Rf3 {[%emt 0:00:13]} Rg1 {[%emt 0:00:29]} 53. Kf5 {[%emt 0:00:43]} Kd4 {[%emt 0:00:17]} 54. Rf4+ {[%emt 0:00:26]} Ke3 {[%emt 0:00:04]} 55. Re4+ {[%emt 0:00:25]} Kf3 {[%emt 0:01:29]} 56. Rc4 {[%emt 0:00:45]} Rb1 {[%emt 0:00:38]} 57. Rc3+ {[%emt 0:00:04]} Ke2 {[%emt 0:00:15]} 58. Kxf6 {[%emt 0:00:04]} Kd2 {[%emt 0:00:23]} 59. Rg3 {[%emt 0:00:24]} Kc2 {[%emt 0:00:06]} 60. g5 {[%emt 0:00:16]} Rxb3 {[%emt 0:00:05]} 61. Rxb3 {[%emt 0:00:06]} Kxb3 {[%emt 0:00:03]} 62. g6 {[%emt 0:00:04]} Kxa4 {[%emt 0:00:03]} 63. g7 {[%emt 0:00:03]} Ka3 {[%emt 0:00:33]} 64. g8=Q {[%emt 0:00:10]} a4 {[%emt 0:00:33]} 65. Qc4 {[%emt 0:00:52]} 1-0

[Event "II Llinars Open 2022"]
[Site "Llinars del Valles"]
[Date "2022.06.28"]
[Round "4.5"]
[White "Fanninger, Leon"]
[Black "Garcia Gallardo, Victor"]
[Result "1/2-1/2"]
[ECO "C55"]
[WhiteElo "2157"]
[BlackElo "1983"]
[Annotator "RC"]
[PlyCount "47"]
[EventDate "2022.06.24"]
[EventType "swiss"]
[EventCountry "ESP"]
[SourceTitle "playchess.com"]
[Source "ChessBase"]
[SourceQuality "1"]
[TimeControl "5400+30"]

1. e4 {[%emt 0:07:58]} e5 {[%emt 0:00:24]} 2. Nf3 {[%emt 0:00:08]} Nc6 {[%emt 0:00:08]} 3. Bc4 {[%emt 0:00:07]} Nf6 {[%emt 0:00:12]} 4. d3 {[%emt 0:00:10]} d6 {[%emt 0:00:28]} 5. Ng5 {[%emt 0:07:20]} d5 {[%emt 0:00:24]} 6. exd5 {[%emt 0:00:36]} Na5 {[%emt 0:00:10]} 7. Nc3 {[%emt 0:12:56]} Nxc4 {[%emt 0:14:06]} 8. dxc4 {[%emt 0:00:05]} Be7 {[%emt 0:00:08]} 9. O-O {[%emt 0:12:36]} O-O {[%emt 0:00:30]} 10. Qd3 {[%emt 0:05:09]} h6 {[%emt 0:02:29]} 11. Nf3 {[%emt 0:00:11]} Bd6 {[%emt 0:00:53]} 12. c5 {[%emt 0:07:04]} Bxc5 {[%emt 0:00:12]} 13. Nxe5 {[%emt 0:00:15]} Re8 {[%emt 0:03:15]} 14. Nf3 {[%emt 0:00:38]} c6 {[%emt 0:14:05]} 15. Qc4 {[%emt 0:05:49]} Bb6 {[%emt 0:00:10]} 16. dxc6 {[%emt 0:01:18]} Be6 {[%emt 0:03:41]} 17. Qh4 {[%emt 0:02:11]} bxc6 {[%emt 0:00:50]} 18. Na4 {[%emt 0:07:29]} Bd5 {[%emt 0:10:20]} 19. Nc3 {[%emt 0:06:58]} Bxf3 {[%emt 0:09:42]} 20. gxf3 {[%emt 0:00:02]} Nd5 {[%emt 0:00:12]} 21. Qxd8 {[%emt 0:10:33]} Raxd8 {[%emt 0:00:03]} 22. Nxd5 {[%emt 0:01:31]} Rxd5 {[%emt 0:00:27]} 23. Be3 {[%emt 0:00:57]} Bxe3 {[%emt 0:01:20]} 24. fxe3 {[%emt 0:00:26]} 1/2-1/2

[Event "II Llinars Open 2022"]
[Site "Llinars del Valles"]
[Date "2022.06.28"]
[Round "4.6"]
[White "Uber Gracia, Hugo"]
[Black "Segura Marsa, Andres"]
[Result "1/2-1/2"]
[ECO "B36"]
[WhiteElo "1915"]
[BlackElo "1862"]
[Annotator "NA RC"]
[PlyCount "35"]
[EventDate "2022.06.24"]
[EventType "swiss"]
[EventCountry "ESP"]
[SourceTitle "playchess.com"]
[Source "ChessBase"]
[SourceQuality "1"]
[TimeControl "5400+30"]

1. e4 {[%emt 0:00:51]} c5 {[%emt 0:00:20]} 2. Nf3 {[%emt 0:00:15]} Nc6 {[%emt 0:00:29]} 3. d4 {[%emt 0:00:35]} cxd4 {[%emt 0:00:36]} 4. Nxd4 {[%emt 0:00:18]} g6 {[%emt 0:00:37]} 5. c4 {[%emt 0:00:49]} Nf6 {[%emt 0:01:04]} 6. Nc3 {[%emt 0:00:31]} d6 {[%emt 0:00:28]} 7. Be3 {[%emt 0:01:09]} Ng4 {[%emt 0:01:53]} 8. Nxc6 {[%emt 0:07:00]} bxc6 {[%emt 0:05:06]} 9. Qd4 {[%emt 0:00:55]} Nxe3 {[%emt 0:03:52]} 10. Qxe3 {[%emt 0:02:07]} Bg7 {[%emt 0:01:01]} 11. Be2 {[%emt 0:01:43]} O-O {[%emt 0:02:28]} 12. O-O {[%emt 0:03:10]} Rb8 {[%emt 0:07:02]} 13. b3 {[%emt 0:08:41]} c5 {[%emt 0:03:11]} 14. Rac1 {[%emt 0:07:56]} Bd7 {[%emt 0:02:34]} 15. Rfd1 {[%emt 0:04:09]} a5 {[%emt 0:09:01]} 16. Kh1 {[%emt 0:06:51]} a4 {[%emt 0:05:56]} 17. bxa4 {[%emt 0:05:54]} Bd4 {[%emt 0:07:04]} 18. Qd2 {[%emt 0:06:32]} 1/2-1/2